bitfinex/quotes_SOLUSD_20241126
["timestamp","ask_amount","ask_price","bid_price","bid_amount"]
[1732597208003,8.33290359,237.62,237.55,8.33290359]
[1732597208221,23.902374,237.64,237.55,8.33290359]
[1732597208418,32.10978759,237.62,237.54,15.9762]
[1732597208628,20.0,237.6,237.55,8.33290359]
[1732597208921,20.0,237.61,237.55,8.33290359]
[1732597209121,8.45839359,237.62,237.55,8.33290359]
[1732597209326,23.776884,237.61,237.55,8.33290359]
[1732597209901,4.2087,237.6,237.54,24.30910359]
[1732597210127,32.10978759,237.59,237.54,15.9762]
[1732597210426,23.776884,237.56,237.5,8.33290359]
[1732597210624,23.776884,237.56,237.49,24.30910359]
[1732597211026,23.776884,237.56,237.5,8.33290359]
[1732597211399,8.33290359,237.59,237.52,8.33290359]
[1732597211603,20.0,237.56,237.53,8.33290359]
[1732597211811,23.776884,237.61,237.55,8.33290359]
[1732597212523,32.10978759,237.58,237.51,8.33290359]
[1732597212733,8.33290359,237.57,237.49,24.30910359]
[1732597213115,32.10978759,237.54,237.49,15.9762]
[1732597214010,27.986684,237.54,237.49,15.9762]
[1732597214213,23.902374,237.55,237.49,24.30910359]
[1732597215628,28.112074,237.55,237.49,24.30910359]
[1732597216244,28.112074,237.55,237.5,8.33290359]
[1732597216542,23.902374,237.55,237.5,8.33290359]
[1732597216739,23.776884,237.56,237.51,8.33290359]
[1732597216932,23.776884,237.57,237.51,8.33290359]
[1732597217948,36.31908759,237.57,237.5,8.33290359]
[1732597218118,8.33290359,237.56,237.49,24.30910359]
[1732597218535,36.31908759,237.57,237.5,8.33290359]
[1732597219343,27.986184,237.57,237.51,8.33290359]
[1732597220244,27.986184,237.57,237.5,8.33290359]
[1732597220738,27.986184,237.57,237.51,8.33290359]
[1732597221642,20.0,237.57,237.53,8.33290359]
[1732597221858,12.54120359,237.63,237.55,8.33290359]
[1732597222357,0.12549,237.6,237.53,8.33290359]
[1732597222550,8.45839359,237.6,237.52,8.33290359]
[1732597223051,8.33290359,237.58,237.51,8.33290359]
[1732597225050,8.33290359,237.58,237.51,12.54310359]
[1732597225442,36.44417759,237.6,237.51,12.54310359]
[1732597225759,23.776884,237.57,237.51,8.33290359]
[1732597227233,12.54230359,237.56,237.49,15.9762]
[1732597227431,8.33290359,237.54,237.49,15.9762]
[1732597228232,8.33290359,237.54,237.47,8.33290359]
[1732597228430,23.776884,237.51,237.44,8.33290359]
[1732597228657,23.776884,237.51,237.45,8.33290359]
[1732597228849,23.776884,237.52,237.45,8.33290359]
[1732597230152,0.12549,237.51,237.46,8.33290359]
[1732597230330,23.776884,237.53,237.46,8.33290359]
[1732597230530,23.776884,237.53,237.47,8.33290359]
[1732597230732,23.776884,237.53,237.46,8.33290359]
[1732597230936,23.776884,237.53,237.47,8.33290359]
[1732597232851,32.10978759,237.53,237.46,8.33290359]
[1732597233245,8.45839359,237.52,237.45,8.33290359]
[1732597233555,23.776884,237.51,237.45,8.33290359]
[1732597234353,32.10978759,237.51,237.44,8.33290359]
[1732597234740,8.33290359,237.47,237.42,16.4459]
[1732597235251,8.33290359,237.48,237.42,16.4459]
[1732597235968,23.776884,237.51,237.46,8.33290359]
[1732597236138,20.0,237.51,237.47,8.33290359]
[1732597236458,20.0,237.51,237.46,8.33290359]
[1732597236852,8.33290359,237.52,237.46,8.33290359]
[1732597237054,8.33290359,237.52,237.45,8.33290359]
[1732597237465,8.33290359,237.52,237.45,12.54420359]
[1732597237960,23.776884,237.53,237.47,8.33290359]
[1732597238168,32.10978759,237.53,237.46,8.33290359]
[1732597239040,0.12549,237.5,237.44,8.33290359]
[1732597239242,8.33290359,237.49,237.42,24.77880359]
[1732597239662,8.33290359,237.52,237.45,8.33290359]
[1732597239848,23.776884,237.51,237.45,8.33290359]
[1732597240054,32.10978759,237.51,237.43,8.33290359]
[1732597240357,0.12549,237.5,237.43,8.33290359]
[1732597240553,8.33290359,237.48,237.42,16.4459]
[1732597240753,8.33290359,237.49,237.42,24.77880359]
[1732597240961,23.776884,237.49,237.43,8.33290359]
[1732597241545,32.10978759,237.49,237.42,28.99060359]
[1732597242245,23.776884,237.49,237.43,8.33290359]
[1732597242669,27.987584,237.49,237.41,8.33290359]
[1732597242958,23.776884,237.47,237.39,12.54530359]
[1732597243456,23.776884,237.47,237.4,8.33290359]
[1732597243968,27.987884,237.47,237.4,8.33290359]
[1732597245761,27.987884,237.47,237.4,12.54510359]
[1732597246068,27.987884,237.47,237.42,8.33290359]
[1732597246443,27.987884,237.47,237.41,8.33290359]
[1732597246947,20.0,237.5,237.44,8.33290359]
[1732597247145,43.776884,237.49,237.44,8.33290359]
[1732597248467,27.987184,237.51,237.46,8.33290359]
[1732597249044,0.12549,237.5,237.39,4.2124]
[1732597249251,0.12549,237.5,237.45,8.33290359]
[1732597249466,4.33609,237.5,237.44,8.33290359]
[1732597249768,23.776884,237.49,237.43,8.33290359]
[1732597250146,32.10978759,237.49,237.42,8.33290359]
[1732597251454,0.12549,237.48,237.37,15.8564]
[1732597251660,32.10978759,237.47,237.39,8.33290359]
[1732597251861,32.23527759,237.45,237.38,8.33290359]
[1732597252059,8.33290359,237.43,237.37,15.8564]
[1732597252368,8.33290359,237.41,237.34,8.33290359]
[1732597252872,23.776884,237.48,237.38,8.33290359]
[1732597253076,20.0,237.43,237.39,8.33290359]
[1732597253263,32.10978759,237.44,237.37,8.33290359]
[1732597253952,0.12549,237.43,237.38,8.33290359]
[1732597254367,8.45839359,237.43,237.32,4.2137]
[1732597254671,0.12549,237.41,237.35,8.33290359]
[1732597255072,0.12549,237.41,237.36,8.33290359]
[1732597255275,27.988584,237.44,237.38,8.33290359]
[1732597256156,0.12549,237.43,237.37,8.33290359]
[1732597256481,23.776884,237.42,237.36,8.33290359]
[1732597256653,32.10978759,237.42,237.35,8.33290359]
[1732597257046,23.776884,237.42,237.36,8.33290359]
[1732597257471,23.776884,237.42,237.37,8.33290359]
[1732597257875,23.776884,237.42,237.36,8.33290359]
[1732597258667,27.988784,237.42,237.36,8.33290359]
[1732597258975,36.32168759,237.42,237.35,8.33290359]
[1732597259548,27.988784,237.42,237.36,8.33290359]
[1732597260378,23.776884,237.42,237.38,8.33290359]
[1732597261466,23.776884,237.42,237.37,8.33290359]
[1732597261666,19.9885,237.5,237.39,8.33290359]
[1732597261863,20.0,237.47,237.42,8.33290359]
[1732597262173,20.0,237.46,237.41,8.33290359]
[1732597262373,20.0,237.46,237.4,8.33290359]
[1732597262855,28.33290359,237.46,237.39,8.33290359]
[1732597263273,0.12549,237.45,237.31,15.1512]
[1732597263467,8.33290359,237.43,237.36,8.33290359]
[1732597263655,0.12549,237.41,237.32,4.2137]
[1732597263974,23.902374,237.41,237.34,8.33290359]
[1732597264352,23.902374,237.41,237.35,8.33290359]
[1732597264553,23.902374,237.42,237.35,8.33290359]
[1732597264775,28.114374,237.42,237.35,8.33290359]
[1732597264986,27.988884,237.42,237.37,8.33290359]
[1732597265158,27.988884,237.42,237.36,8.33290359]
[1732597265977,0.12549,237.41,237.34,8.33290359]
[1732597267174,0.12549,237.41,237.36,8.33290359]
[1732597267574,0.12549,237.41,237.32,4.2136]
[1732597267575,0.12549,237.41,237.35,8.33290359]
[1732597267749,23.776884,237.38,237.32,8.33290359]
[1732597267957,27.989484,237.38,237.32,8.33290359]
[1732597268483,4.2126,237.38,237.32,8.33290359]
[1732597268681,20.0,237.37,237.32,8.33290359]
[1732597271380,20.0,237.37,237.31,15.1512]
[1732597271582,4.2128,237.37,237.29,4.214]
[1732597271881,4.2126,237.39,237.32,8.33290359]
[1732597273875,8.33290359,237.38,237.31,8.33290359]
[1732597274083,4.2126,237.39,237.31,8.33290359]
[1732597274084,12.54550359,237.39,237.31,8.33290359]
[1732597274382,8.33290359,237.38,237.31,8.33290359]
[1732597274698,12.54570359,237.38,237.31,8.33290359]
[1732597274859,4.2128,237.38,237.31,8.33290359]
[1732597275382,12.54570359,237.38,237.3,12.54690359]
[1732597275563,4.2128,237.38,237.31,8.33290359]
[1732597275876,4.2128,237.38,237.32,8.33290359]
[1732597276777,28.33290359,237.4,237.32,8.33290359]
[1732597276981,4.33789,237.39,237.32,8.33290359]
[1732597278380,20.0,237.38,237.35,8.33290359]
[1732597278771,20.0,237.39,237.35,8.33290359]
[1732597280876,20.0,237.39,237.36,8.33290359]
[1732597281383,20.0,237.4,237.36,8.33290359]
[1732597281877,20.0,237.4,237.34,8.33290359]
[1732597282080,20.0,237.39,237.35,8.33290359]
[1732597282778,24.2123,237.4,237.35,8.33290359]
[1732597283283,5.58641708,237.45,237.37,8.33290359]
[1732597283495,4.211,237.47,237.39,8.33290359]
[1732597283670,5.40694103,237.49,237.43,8.33290359]
[1732597283869,5.58641708,237.5,237.45,8.33290359]
[1732597284069,9.79691708,237.5,237.45,8.33290359]
[1732597284483,18.12982067,237.5,237.43,8.33290359]
[1732597284991,5.58641708,237.49,237.43,8.33290359]
[1732597285290,0.12549,237.48,237.38,4.2125]
[1732597285482,8.45839359,237.48,237.41,8.33290359]
[1732597285990,0.12549,237.48,237.42,8.33290359]
[1732597286190,8.33290359,237.52,237.45,8.33290359]
[1732597286487,14.71522724,237.54,237.49,8.33290359]
[1732597286789,10.50532724,237.54,237.51,8.33290359]
[1732597286990,10.50532724,237.54,237.52,8.33290359]
[1732597287875,10.50532724,237.54,237.51,8.33290359]
[1732597288195,10.50532724,237.54,237.5,8.33290359]
[1732597288571,10.50532724,237.54,237.4,23.776884]
[1732597288777,12.54280359,237.53,237.46,8.33290359]
[1732597288985,4.2099,237.53,237.47,8.33290359]
[1732597289388,4.2099,237.53,237.48,8.33290359]
[1732597290580,4.2099,237.53,237.47,8.33290359]
[1732597291479,4.2099,237.53,237.48,8.33290359]
[1732597291887,10.50532724,237.54,237.5,8.33290359]
[1732597292189,10.50532724,237.54,237.49,8.33290359]
[1732597293568,0.12549,237.53,237.49,8.33290359]
[1732597293769,0.12549,237.53,237.48,8.33290359]
[1732597294999,4.33549,237.53,237.46,8.33290359]
[1732597295178,4.33549,237.53,237.47,8.33290359]
[1732597295868,4.33549,237.53,237.48,8.33290359]
[1732597296484,4.33549,237.53,237.47,8.33290359]
[1732597297481,4.33549,237.53,237.48,8.33290359]
[1732597300808,10.50532724,237.54,237.51,8.33290359]
[1732597301471,10.50532724,237.54,237.5,8.33290359]
[1732597301872,10.46322198,237.54,237.5,8.33290359]
[1732597303682,14.67302198,237.54,237.48,8.33290359]
[1732597303888,23.00592557,237.54,237.47,8.33290359]
[1732597304299,14.67302198,237.54,237.48,8.33290359]
[1732597304983,14.67302198,237.54,237.45,4.2112]
[1732597305180,14.67302198,237.54,237.42,20.0]
[1732597305181,8.33290359,237.51,237.42,20.0]
[1732597305379,8.33290359,237.51,237.4,4.2122]
[1732597305687,8.33290359,237.51,237.43,8.33290359]
[1732597306372,12.54330359,237.51,237.44,8.33290359]
[1732597306910,8.45839359,237.53,237.46,8.33290359]
[1732597307130,20.0,237.5,237.47,8.33290359]
[1732597307915,20.0,237.51,237.47,8.33290359]
[1732597308503,20.0,237.51,237.46,8.33290359]
[1732597308903,20.0,237.5,237.46,8.33290359]
[1732597309125,20.0,237.5,237.45,8.33290359]
[1732597310531,20.0,237.5,237.41,8.33290359]
[1732597310532,8.33290359,237.48,237.41,8.33290359]
[1732597310735,32.10978759,237.47,237.4,8.33290359]
[1732597310898,32.10978759,237.45,237.37,8.33290359]
[1732597311233,8.33290359,237.44,237.37,8.33290359]
[1732597312318,12.54460359,237.44,237.37,8.33290359]
[1732597313695,8.33290359,237.4,237.33,16.5991]
[1732597313901,0.12549,237.41,237.35,8.33290359]
[1732597314094,23.902374,237.42,237.36,8.33290359]
[1732597314408,12.54500359,237.41,237.33,24.93200359]
[1732597315180,36.44727759,237.42,237.35,8.33290359]
[1732597315481,8.33290359,237.41,237.34,8.33290359]
[1732597316276,28.114674,237.4,237.33,8.33290359]
[1732597316598,28.114674,237.4,237.27,49.93071436]
[1732597316599,36.44757759,237.4,237.32,8.33290359]
[1732597316902,0.12549,237.37,237.3,8.33290359]
[1732597317098,23.902374,237.37,237.3,8.33290359]
[1732597318484,0.12549,237.37,237.3,8.33290359]
[1732597318689,0.12549,237.37,237.31,8.33290359]
[1732597320101,0.12549,237.37,237.32,8.33290359]
[1732597320298,28.33290359,237.39,237.32,8.33290359]
[1732597320486,20.0,237.37,237.33,8.33290359]
[1732597321009,20.0,237.37,237.32,8.33290359]
[1732597321305,8.33290359,237.37,237.29,8.33290359]
[1732597322295,12.54570359,237.37,237.29,8.33290359]
[1732597323611,12.54570359,237.37,237.3,8.33290359]
[1732597324110,8.45839359,237.36,237.29,8.33290359]
[1732597324301,0.12549,237.36,237.3,8.33290359]
[1732597325706,20.0,237.32,237.23,11.19171615]
[1732597325909,28.33290359,237.32,237.25,8.33290359]
[1732597326096,8.33290359,237.31,237.23,15.30951974]
[1732597326610,8.33290359,237.31,237.24,8.33290359]
[1732597328289,0.12549,237.31,237.24,12.54790359]
[1732597328489,0.12549,237.31,237.24,8.33290359]
[1732597328714,0.12549,237.31,237.26,8.33290359]
[1732597330710,0.12549,237.3,237.25,8.33290359]
[1732597330895,0.12549,237.3,237.23,6.97661615]
[1732597331096,0.12549,237.3,237.23,15.30951974]
[1732597331704,0.12549,237.3,237.25,8.33290359]
[1732597332310,0.12549,237.3,237.24,8.33290359]
[1732597332815,4.214,237.3,237.24,8.33290359]
[1732597333307,23.776884,237.31,237.24,8.33290359]
[1732597333514,24.2138,237.32,237.25,8.33290359]
[1732597333707,8.33290359,237.37,237.3,8.33290359]
[1732597333898,20.0,237.38,237.32,8.33290359]
[1732597334303,0.12549,237.35,237.32,8.33290359]
[1732597334818,4.2124,237.39,237.34,8.33290359]
[1732597335116,4.2124,237.39,237.35,8.33290359]
[1732597335322,0.12549,237.38,237.35,8.33290359]
[1732597335619,9.4619,237.41,237.35,8.33290359]
[1732597335811,4.2122,237.41,237.35,8.33290359]
[1732597336125,4.6717407,237.42,237.38,8.33290359]
[1732597336317,4.2112,237.47,237.41,8.33290359]
[1732597336497,8.45839359,237.46,237.39,8.33290359]
[1732597336698,0.12549,237.44,237.37,8.33290359]
[1732597336915,4.33709,237.44,237.37,8.33290359]
[1732597337109,12.66999359,237.44,237.37,8.33290359]
[1732597337726,12.54450359,237.44,237.37,8.33290359]
[1732597337912,0.12549,237.43,237.37,8.33290359]
[1732597338503,0.12549,237.45,237.38,8.33290359]
[1732597338722,20.0,237.43,237.39,8.33290359]
[1732597339434,20.0,237.43,237.36,8.33290359]
[1732597339927,28.33290359,237.43,237.36,8.33290359]
[1732597340423,20.0,237.43,237.37,8.33290359]
[1732597340626,20.0,237.42,237.38,8.33290359]
[1732597340914,20.0,237.42,237.37,8.33290359]
[1732597341220,20.0,237.42,237.36,12.54580359]
[1732597341516,20.0,237.42,237.38,8.33290359]
[1732597341711,20.0,237.42,237.37,8.33290359]
[1732597342314,20.0,237.42,237.36,8.33290359]
[1732597342904,24.2119,237.42,237.35,8.33290359]
[1732597343110,8.33290359,237.39,237.31,8.33290359]
[1732597343617,8.33290359,237.37,237.29,24.90550359]
[1732597343822,23.776884,237.36,237.25,4.2149]
[1732597344121,8.33290359,237.32,237.25,12.54780359]
[1732597344318,8.33290359,237.33,237.25,12.54780359]
[1732597345322,8.33290359,237.33,237.26,8.33290359]
[1732597345514,12.54640359,237.33,237.25,4.2149]
[1732597345717,12.54640359,237.33,237.25,12.54780359]
[1732597345914,12.54640359,237.33,237.25,8.33290359]
[1732597346307,8.33290359,237.31,237.25,8.33290359]
[1732597346825,0.12549,237.3,237.23,8.33290359]
[1732597347021,0.12549,237.3,237.22,4.2153]
[1732597347223,0.12549,237.28,237.21,8.33290359]
[1732597347404,8.33290359,237.27,237.21,8.33290359]
[1732597347607,8.45839359,237.29,237.21,8.33290359]
[1732597349130,0.12549,237.26,237.19,8.33290359]
[1732597349505,23.902374,237.26,237.14,4.2169]
[1732597349731,23.902374,237.26,237.18,8.33290359]
[1732597350606,20.0,237.29,237.25,8.33290359]
[1732597350825,20.0,237.28,237.24,8.33290359]
[1732597351026,9.4619,237.32,237.26,8.33290359]
[1732597351218,20.0,237.31,237.26,8.33290359]
[1732597351421,15.5484,237.38,237.3,8.33290359]
[1732597351725,8.33290359,237.4,237.33,8.33290359]
[1732597352338,12.54520359,237.4,237.33,8.33290359]
[1732597352630,8.33290359,237.39,237.31,8.33290359]
[1732597352836,20.0,237.35,237.3,8.33290359]
[1732597353714,20.0,237.35,237.31,8.33290359]
[1732597354036,20.0,237.35,237.3,8.33290359]
[1732597354405,0.12549,237.34,237.3,13.03194516]
[1732597355228,0.12549,237.35,237.32,13.03194516]
[1732597355613,0.12549,237.35,237.31,13.03194516]
[1732597355812,20.12549,237.35,237.31,13.03194516]
[1732597356827,20.12549,237.35,237.3,13.03194516]
[1732597357035,20.12549,237.35,237.31,13.03194516]
[1732597358728,20.0,237.36,237.31,13.03194516]
[1732597362146,4.2127,237.38,237.31,13.03194516]
[1732597362443,13.03194516,237.39,237.23,6.3513]
[1732597362444,13.03194516,237.42,237.34,13.03194516]
[1732597362636,0.12549,237.4,237.34,13.03194516]
[1732597362828,0.12549,237.4,237.35,13.03194516]
[1732597363218,16.11511708,237.45,237.37,13.03194516]
[1732597363219,13.03194516,237.44,237.37,13.03194516]
[1732597363828,0.12549,237.4,237.37,13.03194516]
[1732597364023,13.03194516,237.44,237.37,13.03194516]
[1732597364237,17.24364516,237.44,237.37,13.03194516]
[1732597364423,0.12549,237.43,237.37,13.03194516]
[1732597364625,0.12549,237.43,237.36,13.03194516]
[1732597364826,0.12549,237.43,237.37,13.03194516]
[1732597365735,13.03194516,237.48,237.41,13.03194516]
[1732597365966,4.2108,237.48,237.42,13.03194516]
[1732597366441,17.24274516,237.48,237.41,13.03194516]
[1732597366825,13.15743516,237.47,237.4,13.03194516]
[1732597368226,20.0,237.45,237.41,13.03194516]
[1732597368425,20.0,237.45,237.4,17.24414516]
[1732597369535,0.12549,237.44,237.4,13.03194516]
[1732597369762,0.12549,237.44,237.39,13.03194516]
[1732597371423,20.0,237.45,237.41,13.03194516]
[1732597371825,10.3730729,237.49,237.44,13.03194516]
[1732597372033,10.3730729,237.49,237.45,13.03194516]
[1732597372274,10.3730729,237.49,237.46,13.03194516]
[1732597373153,10.3730729,237.49,237.48,13.03194516]
[1732597373532,10.3730729,237.49,237.47,13.03194516]
[1732597374445,10.3730729,237.49,237.47,8.32870577]
[1732597375350,10.3730729,237.49,237.46,8.32870577]
[1732597375959,10.3730729,237.49,237.48,8.32870577]
[1732597376257,10.3730729,237.49,237.47,8.32870577]
[1732597376981,10.3730729,237.49,237.48,8.32870577]
[1732597381456,10.3730729,237.49,237.47,12.53970577]
[1732597384144,10.3730729,237.49,237.48,8.32870577]
[1732597384334,4.2087,237.6,237.48,8.32870577]
[1732597384561,8.32870577,237.62,237.55,8.32870577]
[1732597384969,0.12549,237.61,237.54,8.32870577]
[1732597385254,0.12549,237.59,237.53,8.32870577]
[1732597385564,8.45419577,237.59,237.52,8.32870577]
[1732597385939,8.32870577,237.59,237.52,8.32870577]
[1732597386134,12.53760577,237.59,237.52,8.32870577]
[1732597386338,0.12549,237.58,237.52,8.32870577]
[1732597386555,0.12549,237.58,237.52,12.53880577]
[1732597386940,8.45419577,237.6,237.53,8.32870577]
[1732597387240,0.12549,237.6,237.55,8.32870577]
[1732597388441,4.2076,237.66,237.56,8.32870577]
[1732597388653,8.32870577,237.64,237.58,8.32870577]
[1732597388987,4.2076,237.66,237.52,4.2101]
[1732597388988,5.27544971,237.69,237.62,8.32870577]
[1732597389164,4.2075,237.68,237.62,8.32870577]
[1732597389341,8.45419577,237.67,237.6,8.32870577]
[1732597389678,8.32870577,237.66,237.59,8.32870577]
[1732597389963,8.32870577,237.66,237.59,12.53760577]
[1732597390543,4.2075,237.67,237.6,8.32870577]
[1732597390742,12.53620577,237.67,237.6,8.32870577]
[1732597391257,23.776884,237.7,237.62,8.32870577]
[1732597391458,32.10558977,237.7,237.63,8.32870577]
[1732597391844,4.2069,237.71,237.64,8.32870577]
[1732597392165,8.32870577,237.77,237.7,8.32870577]
[1732597392470,8.32870577,237.78,237.72,8.32870577]
[1732597392641,9.4619,237.79,237.72,8.32870577]
[1732597392838,8.32870577,237.77,237.7,8.32870577]
[1732597393043,8.32870577,237.76,237.7,8.32870577]
[1732597393349,0.12549,237.72,237.67,8.32870577]
[1732597393552,0.12549,237.72,237.64,4.208]
[1732597393553,0.12549,237.72,237.68,8.32870577]
[1732597394247,0.12549,237.71,237.65,12.99344466]
[1732597394452,0.12549,237.67,237.54,4.2098]
[1732597394645,6.0744,237.72,237.58,12.99344466]
[1732597394646,12.99344466,237.65,237.58,12.99344466]
[1732597394848,20.0,237.69,237.54,14.7343]
[1732597395360,23.776884,237.73,237.54,14.7343]
[1732597395361,27.983384,237.73,237.55,20.0]
[1732597395568,27.983384,237.73,237.63,12.99344466]
[1732597395569,0.12549,237.69,237.63,12.99344466]
[1732597395862,0.12549,237.69,237.64,12.99344466]
[1732597396251,0.12549,237.7,237.67,12.99344466]
[1732597396771,4.2063,237.74,237.68,12.99344466]
[1732597397346,17.19974466,237.74,237.67,12.99344466]
[1732597397751,12.99344466,237.75,237.68,12.99344466]
[1732597398564,0.12549,237.74,237.7,12.99344466]
[1732597398740,0.12549,237.74,237.71,12.99344466]
[1732597399168,0.12549,237.77,237.7,12.99344466]
[1732597400466,13.11893466,237.77,237.7,12.99344466]
[1732597400775,17.19914466,237.78,237.71,12.99344466]
[1732597401067,4.2057,237.78,237.72,12.99344466]
[1732597402151,12.99344466,237.83,237.76,12.99344466]
[1732597402358,16.2079264,237.84,237.78,12.99344466]
[1732597402564,16.2079264,237.84,237.79,12.99344466]
[1732597402947,16.2079264,237.84,237.78,12.99344466]
[1732597403151,16.2079264,237.84,237.8,12.99344466]
[1732597403548,16.2079264,237.84,237.79,12.99344466]
[1732597404678,12.99344466,237.82,237.75,12.99344466]
[1732597404853,13.11893466,237.81,237.74,12.99344466]
[1732597405366,0.12549,237.81,237.75,12.99344466]
[1732597405669,0.12549,237.81,237.75,17.19944466]
[1732597405851,0.12549,237.81,237.76,12.99344466]
[1732597406056,12.99344466,237.83,237.76,12.99344466]
[1732597408051,33.40587106,237.84,237.77,12.99344466]
[1732597409456,0.12549,237.83,237.77,12.99344466]
[1732597409798,0.12549,237.83,237.79,12.99344466]
[1732597409966,0.12549,237.83,237.78,12.99344466]
[1732597412156,0.12549,237.83,237.78,17.19894466]
[1732597412556,0.12549,237.83,237.79,12.99344466]
[1732597413053,0.12549,237.83,237.78,4.2055]
[1732597413054,16.2079264,237.84,237.82,12.99344466]
[1732597413277,16.2079264,237.84,237.78,4.2055]
[1732597413278,16.2079264,237.84,237.83,17.19804466]
[1732597414460,16.2079264,237.84,237.83,4.2046]
[1732597415175,16.2079264,237.84,237.81,12.99344466]
[1732597415384,0.12549,237.83,237.8,12.99344466]
[1732597415760,0.12549,237.83,237.8,17.19854466]
[1732597416175,0.12549,237.83,237.8,12.99344466]
[1732597417187,16.2079264,237.84,237.82,12.99344466]
[1732597417369,16.2079264,237.84,237.83,12.99344466]
[1732597419467,16.2079264,237.84,237.82,12.99344466]
[1732597421079,16.2079264,237.84,237.83,12.99344466]
[1732597423078,16.2079264,237.84,237.83,17.19804466]
[1732597424169,0.495912,237.85,237.83,17.19804466]
[1732597425688,0.495912,237.85,237.83,4.2046]
[1732597426666,0.495912,237.85,237.83,12.99344466]
[1732597427784,0.495912,237.85,237.83,17.19804466]
[1732597428576,0.495912,237.85,237.83,4.2046]
[1732597432396,0.495912,237.85,237.84,12.99344466]
[1732597434295,0.495912,237.85,237.84,24.16482968]
[1732597434480,0.495912,237.85,237.84,28.36932968]
[1732597435800,10.48747969,237.97,237.94,8.29902968]
[1732597436305,0.12549,237.96,237.93,12.96252967]
[1732597437801,0.12549,237.96,237.91,17.16572967]
[1732597438000,0.12549,237.96,237.86,12.96252967]
[1732597438001,12.96252967,237.93,237.86,12.96252967]
[1732597438382,12.96252967,237.95,237.88,12.96252967]
[1732597438584,12.96252967,237.96,237.89,17.16612967]
[1732597438795,12.96252967,237.95,237.89,4.2036]
[1732597439501,0.12549,237.94,237.89,17.16612967]
[1732597440391,0.12549,237.94,237.89,4.2036]
[1732597440591,13.08801967,237.95,237.88,12.96252967]
[1732597441297,13.08801967,237.95,237.87,12.96252967]
[1732597441500,13.08801967,237.95,237.88,4.2038]
[1732597441685,0.12549,237.93,237.87,17.16632967]
[1732597441890,0.12549,237.93,237.88,12.96252967]
[1732597442203,12.96252967,237.96,237.89,12.96252967]
[1732597442390,10.48747969,237.97,237.91,12.96252967]
[1732597442597,10.48747969,237.97,237.92,12.96252967]
[1732597443409,0.12549,237.96,237.92,12.96252967]
[1732597444003,10.48747969,237.97,237.94,12.96252967]
[1732597444303,10.48747969,237.97,237.95,12.96252967]
[1732597445185,10.48747969,237.97,237.95,17.16502967]
[1732597445386,10.48747969,237.97,237.96,12.96252967]
[1732597445580,12.96252967,238.04,237.96,12.96252967]
[1732597445804,0.12549,238.03,237.96,12.96252967]
[1732597446002,0.12549,238.01,237.93,17.16532967]
[1732597446310,0.12549,238.0,237.93,17.16532967]
[1732597446535,0.12549,237.98,237.85,23.776884]
[1732597446688,0.12549,237.98,237.93,12.96252967]
[1732597447013,20.12549,237.98,237.93,12.96252967]
[1732597447207,20.12549,237.98,237.93,17.16532967]
[1732597448010,0.12549,237.98,237.93,17.16532967]
[1732597448314,17.16402967,238.01,237.93,17.16532967]
[1732597449493,12.96252967,237.99,237.91,17.16562967]
[1732597449698,12.96252967,237.93,237.86,12.96252967]
[1732597449997,12.96252967,237.91,237.84,28.82832967]
[1732597450201,12.96252967,237.88,237.8,12.96252967]
[1732597450505,16.5097,237.98,237.8,12.96252967]
[1732597450506,20.0,237.94,237.8,12.96252967]
[1732597450813,12.96252967,237.85,237.77,12.96252967]
[1732597451010,12.96252967,237.81,237.73,33.21802967]
[1732597451306,9.9577,237.87,237.73,16.0493]
[1732597451307,12.96252967,237.8,237.73,16.0493]
[1732597451518,12.96252967,237.84,237.76,12.96252967]
[1732597451890,0.12549,237.81,237.75,12.96252967]
[1732597453009,0.12549,237.79,237.73,29.01182967]
[1732597453686,4.205,237.81,237.69,12.96252967]
[1732597453905,12.96252967,237.76,237.69,12.96252967]
[1732597454214,12.96252967,237.78,237.69,12.96252967]
[1732597455211,36.73941367,237.8,237.71,12.96252967]
[1732597455585,0.12549,237.77,237.69,17.16952967]
[1732597455789,0.12549,237.75,237.69,12.96252967]
[1732597455993,0.12549,237.75,237.67,20.2566]
[1732597455994,0.12549,237.75,237.67,29.01182967]
[1732597456289,0.12549,237.73,237.65,17.17022967]
[1732597457092,0.12549,237.73,237.67,12.96252967]
[1732597457290,12.96252967,237.76,237.67,12.96252967]
[1732597457497,0.12549,237.75,237.67,12.96252967]
[1732597457691,0.12549,237.71,237.64,12.96252967]
[1732597457913,0.12549,237.71,237.62,12.96252967]
[1732597458114,0.12549,237.69,237.62,12.96252967]